fUST/lending_fUST_20260206
["ID","MTS","AMOUNT","RATE_DAILY","PERIOD"]
[404626292,1770349839050,-172.0,0.00016756,2]
[404626293,1770349839059,-349.0,0.00016756,2]
[404626294,1770349839069,-151.0,0.00016756,2]
[404626295,1770349839079,-166.0,0.00016756,2]
[404626296,1770349839089,-349.0,0.00016756,2]
[404626297,1770349839099,-151.0,0.00016756,2]
[404626298,1770349839109,-166.0,0.00016756,2]
[404626300,1770349839120,-349.0,0.00016756,2]
[404626301,1770349839250,-151.0,0.00016756,2]
[404626303,1770349839260,-166.0,0.00016756,2]
[404626304,1770349839269,-349.0,0.00016756,2]
[404626305,1770349839279,-217.55291771,0.00016756,2]
[404626306,1770349839288,-349.0,0.00016756,2]
[404626307,1770349839297,-151.0,0.00016756,2]
[404626308,1770349839306,-349.0,0.00016756,2]
[404626309,1770349839316,-151.0,0.00016756,2]
[404626310,1770349839326,-349.0,0.00016756,2]
[404626311,1770349839335,-151.0,0.00016756,2]
[404626312,1770349839344,-349.0,0.00016756,2]
[404626313,1770349839354,-151.0,0.00016756,2]
[404626314,1770349839363,-349.0,0.00016756,2]
[404626315,1770349839372,-151.0,0.00016756,2]
[404626316,1770349839381,-349.0,0.00016756,2]
[404626317,1770349839391,-151.0,0.00016756,2]
[404626318,1770349839401,-349.0,0.00016756,2]
[404626321,1770349839410,-349.0,0.00016756,2]
[404626323,1770349839419,-151.0,0.00016756,2]
[404626324,1770349839427,-349.0,0.00016756,2]
[404626325,1770349839436,-151.0,0.00016756,2]
[404626326,1770349839446,-349.0,0.00016756,2]
[404626327,1770349839455,-292.0,0.00016756,2]
[404626328,1770349839465,-349.0,0.00016756,2]
[404626329,1770349839475,-151.0,0.00016756,2]
[404626330,1770349839483,-349.0,0.00016756,2]
[404626331,1770349839493,-349.0,0.00016756,2]
[404626332,1770349839503,-349.0,0.00016756,2]
[404626334,1770349839512,-349.0,0.00016756,2]
[404626336,1770349839521,-168.0,0.00016756,2]
[404626338,1770349839530,-349.0,0.00016756,2]
[404626340,1770349839539,-168.0,0.00016756,2]
[404626342,1770349839548,-349.0,0.00016756,2]
[404626344,1770349839558,-170.4982931,0.00016756,2]
[404626346,1770349839567,-349.0,0.00016756,2]
[404626348,1770349839576,-349.0,0.00016756,2]
[404626350,1770349839585,-349.0,0.00016756,2]
[404626352,1770349839594,-349.0,0.00016756,2]
[404626354,1770349839603,-349.0,0.00016756,2]
[404626355,1770349839612,-349.0,0.00016756,2]
[404626356,1770349839621,-349.0,0.00016756,2]
[404626357,1770349839630,-349.0,0.00016756,2]
[404626358,1770349839639,-349.0,0.00016756,2]
[404626359,1770349839648,-349.0,0.00016756,2]
[404626360,1770349839657,-349.0,0.00016756,2]
[404626361,1770349839666,-349.0,0.00016756,2]
[404626362,1770349839675,-349.0,0.00016756,2]
[404626363,1770349839684,-349.0,0.00016756,2]
[404626364,1770349839693,-165.16784305,0.00016756,2]
[404626365,1770349839702,-349.0,0.00016756,2]
[404626366,1770349839711,-349.0,0.00016756,2]
[404626367,1770349839721,-349.0,0.00016756,2]
[404626368,1770349839730,-349.0,0.00016756,2]
[404626369,1770349839740,-349.0,0.00016756,2]
[404626370,1770349839749,-349.0,0.00016756,2]
[404626371,1770349839758,-349.0,0.00016756,2]
[404626372,1770349839767,-152.0,0.00016756,2]
[404626373,1770349839776,-152.0,0.00016756,2]
[404626374,1770349839786,-152.0,0.00016756,2]
[404626375,1770349839795,-152.0,0.00016756,2]
[404626376,1770349839804,-152.0,0.00016756,2]
[404626377,1770349839813,-152.0,0.00016756,2]
[404626378,1770349839822,-152.0,0.00016756,2]
[404626379,1770349839832,-152.0,0.00016756,2]
[404626380,1770349839841,-152.0,0.00016756,2]
[404626381,1770349839850,-152.0,0.00016756,2]
[404626382,1770349839860,-152.0,0.00016756,2]
[404626383,1770349839869,-152.0,0.00016756,2]
[404626384,1770349839878,-152.0,0.00017055,2]
[404626385,1770349839888,-152.0,0.00017055,2]
[404626386,1770349839897,-600.0,0.0001709,2]
[404626387,1770349839907,-152.0,0.00017233,2]
[404626388,1770349839917,-213.74685188,0.00017233,2]
[404626389,1770349839927,-152.0,0.00017233,2]
[404626390,1770349839936,-152.0,0.00017233,2]
[404626391,1770349839945,-152.0,0.00017233,2]
[404626392,1770349839955,-152.0,0.00017233,2]
[404626393,1770349839965,-152.0,0.00017233,2]
[404626394,1770349839974,-240.0,0.00017233,2]
[404626395,1770349839983,-335.0,0.00017233,2]
[404626396,1770349839996,-335.0,0.00017233,2]
[404626397,1770349840006,-335.0,0.00017233,2]
[404626398,1770349840016,-335.0,0.00017233,2]
[404626399,1770349840026,-335.0,0.00017233,2]
[404626400,1770349840036,-335.0,0.00017233,2]
[404626401,1770349840045,-335.0,0.00017233,2]
[404626402,1770349840055,-335.0,0.00017233,2]
[404626403,1770349840064,-335.0,0.00017233,2]
[404626404,1770349840074,-335.0,0.00017233,2]
[404626405,1770349840083,-335.0,0.00017233,2]
[404626406,1770349840092,-335.0,0.00017233,2]
[404626407,1770349840101,-335.0,0.00017233,2]
[404626408,1770349840110,-335.0,0.00017233,2]
[404626409,1770349840119,-335.0,0.00017233,2]
[404626410,1770349840128,-335.0,0.00017233,2]
[404626411,1770349840137,-335.0,0.00017233,2]
[404626412,1770349840147,-335.0,0.00017233,2]
[404626413,1770349840157,-335.0,0.00017233,2]
[404626414,1770349840168,-335.0,0.00017233,2]
[404626415,1770349840177,-335.0,0.00017233,2]
[404626416,1770349840187,-335.0,0.00017233,2]
[404626417,1770349840196,-335.0,0.00017233,2]
[404626418,1770349840206,-335.0,0.00017233,2]
[404626419,1770349840215,-335.0,0.00017233,2]
[404626420,1770349840225,-335.0,0.00017233,2]
[404626421,1770349840235,-335.0,0.00017233,2]
[404626422,1770349840249,-335.0,0.00017233,2]
[404626423,1770349840258,-335.0,0.00017233,2]
[404626424,1770349840267,-335.0,0.00017233,2]
[404626425,1770349840277,-335.0,0.00017233,2]
[404626426,1770349840286,-335.0,0.00017233,2]
[404626427,1770349840295,-335.0,0.00017233,2]
[404626428,1770349840304,-335.0,0.00017233,2]
[404626429,1770349840313,-335.0,0.00017233,2]
[404626430,1770349840322,-335.0,0.00017233,2]
[404626431,1770349840332,-335.0,0.00017233,2]
[404626432,1770349840341,-335.0,0.00017233,2]
[404626433,1770349840350,-335.0,0.00017233,2]
[404626434,1770349840359,-335.0,0.00017233,2]
[404626435,1770349840368,-335.0,0.00017233,2]
[404626436,1770349840377,-335.0,0.00017233,2]
[404626437,1770349840386,-335.0,0.00017233,2]
[404626438,1770349840395,-335.0,0.00017233,2]
[404626439,1770349840404,-335.0,0.00017233,2]
[404626440,1770349840413,-335.0,0.00017233,2]
[404626441,1770349840422,-335.0,0.00017233,2]
[404626442,1770349840431,-354.34338244,0.00017233,2]
[404626443,1770349840440,-177.0,0.00017233,2]
[404626444,1770349840449,-177.0,0.00017233,2]
[404626445,1770349840458,-178.46763257,0.00017233,2]
[404626446,1770349840467,-155.488,0.00017338,2]
[404626447,1770349840476,-262.23471569,0.00017437,2]
[404626448,1770349840485,-300.0,0.00017577,2]
[404626449,1770349840498,-300.0,0.00017577,2]
[404626450,1770349840508,-300.0,0.00017577,2]
[404626451,1770349840517,-300.0,0.00017577,2]
[404626452,1770349840526,-300.0,0.00017577,2]
[404626453,1770349840535,-300.0,0.00017577,2]
[404626454,1770349840544,-300.0,0.00017577,2]
[404626455,1770349840553,-300.0,0.00017577,2]
[404626456,1770349840562,-300.0,0.00017577,2]
[404626457,1770349840571,-300.0,0.00017577,2]
[404626458,1770349840580,-300.0,0.00017577,2]
[404626459,1770349840589,-300.0,0.00017577,2]
[404626460,1770349840598,-300.0,0.00017577,2]
[404626461,1770349840607,-300.0,0.00017577,2]
[404626462,1770349840617,-300.0,0.00017577,2]
[404626463,1770349840626,-250.0,0.00017632,2]
[404626464,1770349840635,-250.0,0.00017632,2]
[404626465,1770349840644,-250.0,0.00017632,2]
[404626466,1770349840654,-2000.0,0.00017632,2]
[404626467,1770349840663,-250.0,0.00017632,2]
[404626468,1770349840672,-250.0,0.00017632,2]
[404626469,1770349840681,-250.0,0.00017632,2]
[404626470,1770349840690,-2000.0,0.00017632,2]
[404626471,1770349840699,-250.0,0.00017632,2]
[404626472,1770349840708,-250.0,0.00017632,2]
[404626473,1770349840717,-250.0,0.00017632,2]
[404626474,1770349840726,-250.0,0.00017632,2]
[404626475,1770349840735,-2000.0,0.00017632,2]
[404626476,1770349840746,-250.0,0.00017632,2]
[404626477,1770349840756,-250.0,0.00017632,2]
[404626478,1770349840765,-250.0,0.00017632,2]
[404626479,1770349840774,-2000.0,0.00017632,2]
[404626480,1770349840783,-250.0,0.00017632,2]
[404626481,1770349840793,-250.0,0.00017632,2]
[404626482,1770349840801,-250.0,0.00017632,2]
[404626483,1770349840811,-2000.0,0.00017632,2]
[404626484,1770349840821,-250.0,0.00017632,2]
[404626485,1770349840830,-250.0,0.00017632,2]
[404626486,1770349840839,-250.0,0.00017632,2]
[404626487,1770349840848,-250.0,0.00017632,2]
[404626488,1770349840858,-2000.0,0.00017632,2]
[404626489,1770349840867,-250.0,0.00017632,2]
[404626490,1770349840876,-250.0,0.00017632,2]
[404626491,1770349840886,-250.0,0.00017632,2]
[404626492,1770349840895,-2000.0,0.00017632,2]
[404626493,1770349840904,-250.0,0.00017632,2]
[404626494,1770349840914,-250.0,0.00017632,2]
[404626495,1770349840923,-288.22422893,0.00017632,2]
[404626496,1770349840932,-2000.0,0.00017632,2]
[404626497,1770349840941,-250.0,0.00017632,2]
[404626498,1770349840951,-2000.0,0.00017632,2]
[404626499,1770349840960,-250.0,0.00017632,2]
[404626500,1770349840969,-250.0,0.00017632,2]
[404626501,1770349840978,-250.0,0.00017632,2]
[404626502,1770349840988,-2000.0,0.00017632,2]
[404626503,1770349841000,-310.11364431,0.00017632,2]
[404626504,1770349841010,-250.0,0.00017632,2]
[404626505,1770349841019,-2000.0,0.00017632,2]
[404626506,1770349841029,-250.0,0.00017632,2]
[404626507,1770349841038,-250.0,0.00017632,2]
[404626508,1770349841047,-250.0,0.00017632,2]
[404626509,1770349841057,-250.0,0.00017632,2]
[404626510,1770349841067,-250.0,0.00017632,2]
[404626511,1770349841076,-250.0,0.00017632,2]
[404626512,1770349841085,-250.0,0.00017632,2]
[404626513,1770349841094,-250.0,0.00017632,2]
[404626514,1770349841103,-250.0,0.00017632,2]
[404626515,1770349841113,-261.69058041,0.00017632,2]
[404626516,1770349841123,-250.0,0.00017632,2]
[404626517,1770349841133,-250.0,0.00017632,2]
[404626518,1770349841142,-250.0,0.00017632,2]
[404626519,1770349841152,-250.0,0.00017632,2]
[404626520,1770349841164,-209.40437684,0.00017632,2]
[404626521,1770349841174,-261.90214775,0.00017632,2]
[404626522,1770349841183,-217.15233878,0.00017632,2]
[404626523,1770349841193,-225.18697532,0.00017632,2]
[404626524,1770349841203,-233.51889341,0.00017632,2]
[404626525,1770349841212,-2395.741144,0.00017693,2]
[404626526,1770349841221,-359.7104256,0.0001779,2]
[404626527,1770349841233,-281.091,0.00017808,2]
[404626528,1770349841245,-413.0,0.00018,2]
[404626529,1770349841255,-1405.69068575,0.00018,2]
[404626530,1770349841264,-7629.38,0.00018116,3]
[404626531,1770349841273,-3814.68,0.00018116,3]
[404626532,1770349841283,-1907.34,0.00018116,3]
[404626533,1770349841292,-953.68,0.00018116,3]
[404626534,1770349841302,-476.84,0.00018116,3]
[404626535,1770349841311,-1000.0,0.00018307,5]
[404626536,1770349841320,-3135.0,0.00018398,2]
[404626537,1770349841330,-2395.741144,0.00018438,2]
[404626538,1770349841340,-495.07,0.00018699,2]
[404626539,1770349841349,-720.0,0.00018799,2]
[404626540,1770349841359,-380.0,0.00018879,2]
[404626541,1770349841368,-380.0,0.00018881,2]
[404626542,1770349841377,-380.0,0.00018917,2]
[404626543,1770349841386,-3181.0,0.0001898,2]
[404626544,1770349841491,-1000.0,0.00019,2]
[404626545,1770349841500,-151.0,0.00019,2]
[404626546,1770349841510,-781.0,0.00019,2]
[404626547,1770349841519,-2395.741144,0.00019183,2]
[404626548,1770349841528,-1913.56,0.000192,2]
[404626549,1770349841538,-327.0,0.00019274,2]
[404626550,1770349841547,-327.0,0.00019291,2]
[404626551,1770349841556,-4089.99368544,0.00019413,2]
[404626552,1770349841565,-380.0,0.00019436,2]
[404626553,1770349841575,-302.23662147,0.00019437,2]
[404626554,1770349841584,-327.0,0.0001947,2]
[404626555,1770349841593,-1534.0,0.00019519,2]
[404626556,1770349841602,-327.0,0.00019544,2]
[404626557,1770349841611,-327.0,0.00019653,2]
[404626558,1770349841620,-158.829912,0.00019708,2]
[404626559,1770349841630,-2374.0,0.0001982,2]
[404626560,1770349841639,-2395.741144,0.00019928,2]
[404626561,1770349841648,-1534.0,0.00019942,2]
[404626562,1770349841658,-5328.72760214,0.0001999,2]
[404626563,1770349841677,-4730.26266988,0.0001999,2]
[404626564,1770349841801,-152.0,0.00016756,2]
[404626565,1770349841810,-160.00565817,0.00017632,2]
[404626571,1770349843806,-82.15343429,0.00017632,2]
[404626572,1770349843815,-251.11897888,0.00017632,2]
[404626573,1770349843825,-260.4103811,0.00017632,2]
[404626574,1770349843834,-250.0,0.00017632,2]
[404626575,1770349843843,-270.0455652,0.00017632,2]
[404626576,1770349843853,-250.0,0.00017632,2]
[404626577,1770349843862,-280.03725112,0.00017632,2]
[404626578,1770349843871,-250.0,0.00017632,2]
[404626579,1770349843880,-290.39862941,0.00017632,2]
[404626580,1770349843890,-250.0,0.00017632,2]
[404626581,1770349843899,-301.1433787,0.00017632,2]
[404626582,1770349843909,-250.0,0.00017632,2]
[404626583,1770349843919,-29135.69238131,0.0001999,2]
[404626585,1770349844435,-250.0,0.00017632,2]
[404626586,1770349844445,-90.66502152,0.0001999,2]
[404626587,1770349844457,-52983.39121407,0.0001999,2]
[404626588,1770349844466,-15508.0943035,0.0002,20]
[404626589,1770349844475,-384.60883854,0.0002,2]
[404626590,1770349844484,-151.0,0.0002,2]
[404626591,1770349844494,-150.186396,0.0002,2]
[404626592,1770349844503,-168.0,0.00020226,2]
[404626593,1770349844512,-1534.0,0.00020318,2]
[404626594,1770349844522,-151.0,0.000204,4]
[404626595,1770349844531,-3368.71924789,0.00020452,2]
[404626610,1770349845810,-250.0,0.00017632,2]
[404626611,1770349845819,-250.0,0.00017632,2]
[404626612,1770349845828,-1068.53099223,0.00020452,2]
[404626626,1770350118786,160.2814188,0.0002,120]
[404626632,1770350316592,162.636,0.00030137,120]
[404626648,1770350445100,457.57,0.00030137,120]
[404626782,1770351038079,-2087.8459996,0.00018009,2]
[404626850,1770351040197,-1841.52067398,0.00018009,2]
[404626852,1770351040206,-206.49872696,0.000181,2]
[404626854,1770351040216,-3817.39741349,0.00018139,2]
[404628188,1770351429351,1000.0,0.0003,120]
[404628189,1770351505752,1000.0,0.0003,120]
[404628190,1770351515447,1000.0,0.0003,120]
[404628191,1770351524652,1000.0,0.0003,120]
[404628192,1770351534226,1000.0,0.0003,120]
[404628193,1770351542756,1000.0,0.0003,120]
[404628194,1770351551105,1000.0,0.0003,120]
[404628195,1770351559611,1000.0,0.0003,120]
[404628196,1770351566984,1000.0,0.0003,120]
[404628197,1770351574732,1000.0,0.0003,120]
[404628198,1770351582077,1000.0,0.0003,120]
[404628199,1770351584181,1000.0,0.00030136,120]
[404628201,1770351590542,1000.0,0.0003,120]
[404628202,1770351599208,1000.0,0.0003,120]
[404628203,1770351605813,1000.0,0.0003,120]
[404628204,1770351613176,1000.0,0.0003,120]
[404628205,1770351673648,1000.0,0.00030136,120]
[404628207,1770351741506,1000.0,0.0003,120]
[404628208,1770351748048,204.0,0.00025076,120]
[404628209,1770351748339,1000.0,0.0003,120]
[404628210,1770351749477,1000.0,0.00030136,120]
[404628211,1770351755124,1000.0,0.0003,120]
[404628212,1770351762249,1000.0,0.0003,120]
[404628213,1770351767234,1000.0,0.00030136,120]
[404628214,1770351769114,1000.0,0.0003,120]
[404628215,1770351776441,1000.0,0.0003,120]
[404628216,1770351783349,1000.0,0.0003,120]
[404628217,1770351786356,2000.0,0.00030136,120]
[404628219,1770351789915,1000.0,0.0003,120]
[404628220,1770351797590,1000.0,0.0003,120]
[404628221,1770351797753,2000.0,0.00030136,120]
[404628222,1770351803854,1000.0,0.0003,120]
[404628223,1770351810245,1000.0,0.0003,120]
[404628224,1770351816614,1000.0,0.0003,120]
[404628225,1770351823135,1000.0,0.0003,120]
[404628226,1770351830206,1000.0,0.0003,120]
[404628227,1770351836616,1000.0,0.0003,120]
[404628228,1770351842992,1000.0,0.0003,120]
[404628229,1770351849694,1000.0,0.0003,120]
[404628230,1770351856144,1000.0,0.0003,120]
[404628231,1770351863218,1000.0,0.0003,120]
[404628232,1770351872563,1000.0,0.0003,120]
[404628233,1770351879139,1000.0,0.0003,120]
[404628234,1770351885922,1000.0,0.0003,120]
[404628235,1770351891330,782.0,0.000301,120]
[404628236,1770351892172,1000.0,0.0003,120]
[404628237,1770351898265,1000.0,0.0003,120]
[404628238,1770351904641,1000.0,0.0003,120]
[404628241,1770351987843,500.0,0.0003,120]
[404628242,1770351994301,500.0,0.0003,120]
[404628243,1770352000459,500.0,0.0003,120]
[404628244,1770352007834,500.0,0.0003,120]
[404628250,1770352056485,363.4812923,0.00029848,120]
[404628252,1770352103742,1001.7677468,0.00015,7]
[404628254,1770352136978,1000.0,0.0003,120]
[404628255,1770352143734,1000.0,0.0003,120]
[404628256,1770352150756,1000.0,0.0003,120]
[404628257,1770352158435,1000.0,0.0003,120]
[404628258,1770352165191,1000.0,0.0003,120]
[404628259,1770352168918,217369.4,0.0001,2]
[404628370,1770352238105,-202.36875243,0.00018502,2]
[404628371,1770352238115,-158.829912,0.00018504,2]
[404628372,1770352238124,-168.0,0.00018612,2]
[404628373,1770352238134,-300.0,0.00018648,2]
[404628374,1770352238143,-76.03134275,0.00018648,2]
[404628422,1770352240326,-223.96865725,0.00018648,2]
[404628424,1770352240335,-300.0,0.00018648,2]
[404628426,1770352240345,-300.0,0.00018648,2]
[404628428,1770352240355,-300.0,0.00018648,2]
[404628430,1770352240364,-300.0,0.00018648,2]
[404628432,1770352240373,-300.0,0.00018648,2]
[404628434,1770352240383,-300.0,0.00018648,2]
[404628436,1770352240392,-300.0,0.00018648,2]
[404628438,1770352240401,-300.0,0.00018648,2]
[404628439,1770352240410,-300.0,0.00018648,2]
[404628442,1770352240419,-300.0,0.00018648,2]
[404628444,1770352240429,-300.0,0.00018648,2]
[404628446,1770352240438,-300.0,0.00018648,2]
[404628448,1770352240447,-300.0,0.00018648,2]
[404628450,1770352240457,-500.0,0.00018778,2]
[404628452,1770352240466,-2968.0,0.00018779,2]
[404628453,1770352240475,-11515.51525627,0.00018779,2]
[404628601,1770352259655,500.0,0.0003,120]
[404628602,1770352266383,500.0,0.0003,120]
[404628603,1770352272945,500.0,0.0003,120]
[404628604,1770352281866,-219.0,0.000188,2]
[404628605,1770352281879,-562.0,0.000188,2]
[404628609,1770352296297,310.0,0.00030137,120]
[404628610,1770352311416,-219.0,0.0001902,2]
[404628676,1770353038245,1000.0,0.0003,120]
[404628681,1770353047167,1000.0,0.0003,120]
[404628688,1770353054829,1000.0,0.0003,120]
[404628702,1770353062717,1000.0,0.0003,120]
[404628704,1770353071183,1000.0,0.0003,120]
[404628705,1770353079135,1000.0,0.0003,120]
[404628706,1770353087428,1000.0,0.0003,120]
[404628708,1770353094391,1000.0,0.0003,120]
[404628709,1770353102279,1000.0,0.0003,120]
[404628710,1770353111556,1000.0,0.0003,120]
[404628712,1770353118658,1000.0,0.0003,120]
[404628713,1770353126091,1000.0,0.0003,120]
[404628715,1770353133288,1000.0,0.0003,120]
[404628716,1770353142159,1000.0,0.0003,120]
[404628790,1770353432266,-1000.0,0.00018409,2]
[404628791,1770353432277,-198.32137738,0.00018455,2]
[404628792,1770353432286,-288.80369031,0.00018778,2]
[404628793,1770353432295,-781.0,0.00019,2]
[404628794,1770353432304,-381.0,0.0001902,2]
[404628795,1770353432316,-3152.95262825,0.0001902,2]
[404628806,1770353438355,-1364.12730282,0.0001902,2]
[404628813,1770353440617,-3262.00339794,0.0001902,2]
[404628814,1770353440628,-7317.34126102,0.0001902,2]
[404628815,1770353440638,-1566.0,0.0001916,2]
[404628816,1770353440648,-7230.74712294,0.00019246,2]
[404628817,1770353440657,-151.0,0.00019246,2]
[404628818,1770353440667,-250.0,0.00019246,2]
[404628819,1770353440676,-250.0,0.00019246,2]
[404628820,1770353440685,-250.0,0.00019246,2]
[404628821,1770353440695,-250.0,0.00019246,2]
[404628822,1770353440704,-250.0,0.00019246,2]
[404628823,1770353440714,-250.0,0.00019246,2]
[404628824,1770353440723,-250.0,0.00019246,2]
[404628825,1770353440733,-250.0,0.00019246,2]
[404628826,1770353440742,-250.0,0.00019246,2]
[404628827,1770353440751,-250.0,0.00019246,2]
[404628828,1770353440760,-209.40437684,0.00019246,2]
[404628829,1770353440770,-250.0,0.00019246,2]
[404628830,1770353440779,-217.15233878,0.00019246,2]
[404628831,1770353440789,-225.18697532,0.00019246,2]
[404628832,1770353440798,-233.51889341,0.00019246,2]
[404628833,1770353440807,-242.15909246,0.00019246,2]
[404628834,1770353440816,-251.11897888,0.00019246,2]
[404628835,1770353440826,-260.4103811,0.00019246,2]
[404628836,1770353440836,-270.0455652,0.00019246,2]
[404628837,1770353440845,-280.03725112,0.00019246,2]
[404628838,1770353440855,-290.39862941,0.00019246,2]
[404628839,1770353440865,-301.1433787,0.00019246,2]
[404628840,1770353440875,-500.0,0.0001925,2]
[404628841,1770353440884,-1566.0,0.00019251,2]
[404628842,1770353440893,-2968.0,0.00019273,2]
[404628843,1770353440902,-368.12031474,0.00019436,2]
[404628844,1770353440912,-1566.0,0.00019557,2]
[404628845,1770353440922,-224.873,0.00019557,2]
[404628846,1770353440932,-500.0,0.00019562,2]
[404628847,1770353440941,-1566.0,0.00019564,2]
[404628848,1770353440952,-479.24420035,0.00019591,2]
[404628849,1770353440962,-500.0,0.00019591,2]
[404628850,1770353440972,-265.67462239,0.00019591,2]
[404628851,1770353440981,-399.04277473,0.00019591,2]
[404628852,1770353440991,-500.0,0.00019591,2]
[404628853,1770353441000,-500.0,0.00019591,2]
[404628854,1770353441010,-500.0,0.00019591,2]
[404628855,1770353441020,-500.0,0.00019591,2]
[404628856,1770353441035,-500.0,0.00019591,2]
[404628857,1770353441045,-500.0,0.00019591,2]
[404628858,1770353441058,-500.0,0.00019591,2]
[404628859,1770353441067,-633.05710129,0.00019591,2]
[404628860,1770353441077,-500.0,0.00019591,2]
[404628861,1770353441087,-500.0,0.00019591,2]
[404628862,1770353441097,-500.0,0.00019591,2]
[404628863,1770353441106,-500.0,0.00019591,2]
[404628864,1770353441115,-500.0,0.00019591,2]
[404628865,1770353441124,-500.0,0.00019591,2]
[404628866,1770353441134,-500.0,0.00019591,2]
[404628867,1770353441143,-500.0,0.00019591,2]
[404628868,1770353441153,-500.0,0.00019591,2]
[404628869,1770353441162,-500.0,0.00019591,2]
[404628870,1770353441171,-500.0,0.00019591,2]
[404628871,1770353441180,-500.0,0.00019591,2]
[404628872,1770353441190,-1566.0,0.00019598,2]
[404628873,1770353441204,-300.0,0.00019657,2]
[404628874,1770353441213,-300.0,0.00019657,2]
[404628875,1770353441223,-300.0,0.00019657,2]
[404628876,1770353441233,-300.0,0.00019657,2]
[404628877,1770353441243,-300.0,0.00019657,2]
[404628878,1770353441253,-300.0,0.00019657,2]
[404628879,1770353441263,-300.0,0.00019657,2]
[404628880,1770353441274,-300.0,0.00019657,2]
[404628881,1770353441283,-300.0,0.00019657,2]
[404628882,1770353441293,-300.0,0.00019657,2]
[404628883,1770353441302,-300.0,0.00019657,2]
[404628884,1770353441312,-300.0,0.00019657,2]
[404628885,1770353441322,-300.0,0.00019657,2]
[404628886,1770353441331,-300.0,0.00019657,2]
[404628887,1770353441341,-300.0,0.00019657,2]
[404628888,1770353441350,-803.3955486,0.00019666,2]
[404628889,1770353441359,-294.2181573,0.00019666,2]
[404628890,1770353441369,-301.96770354,0.00019794,2]
[404628891,1770353441379,-5000.0,0.000198,2]
[404628892,1770353441388,-798.580381,0.00019879,2]
[404628893,1770353441398,-2726.66245696,0.00020043,2]
[404628894,1770353441407,-250.0,0.000204,10]
[404628895,1770353441417,-234.0192253,0.00020455,2]
[404628896,1770353441426,-250.0,0.000205,10]
[404628897,1770353441435,-1125.7427195,0.000205,2]
[404628898,1770353441444,-406.782204,0.000206,10]
[404628899,1770353441454,-168.0,0.00020616,2]
[404628900,1770353441463,-823.63267954,0.00020622,2]
[404628901,1770353441472,-632.0,0.000207,2]
[404628902,1770353441482,-1373.0,0.000207,2]
[404628903,1770353441492,-159.351,0.000207,2]
[404628904,1770353441501,-440.0,0.000207,2]
[404628905,1770353441511,-798.580381,0.00020715,2]
[404628906,1770353441520,-720.0,0.00020922,2]
[404628907,1770353441529,-1000.0,0.0002099,2]
[404628908,1770353441539,-1000.0,0.0002099,2]
[404628909,1770353441548,-1000.0,0.0002099,2]
[404628910,1770353441557,-1000.0,0.0002099,2]